[Event "Rapid della Domenica"]
[Site "Chess.com"]
[Date "2020.05.17"]
[Round "3"]
[White "malberici"]
[Black "pedrak"]
[Result "1-0"]
[WhiteElo "1672"]
[BlackElo "1672"]
[TimeControl "720+3"]
[EndTime "7:17:32 PDT"]
[Termination "malberici ha vinto per abbandono"]

1. d4 {[%clk 0:12:02.9]} 1... d5 {[%clk 0:12:00.1]} 2. c4 {[%clk 0:12:04]} 2...
dxc4 {[%clk 0:12:01.4]} 3. e3 {[%clk 0:12:05.7]} 3... Nf6 {[%clk 0:12:01.6]} 4.
Bxc4 {[%clk 0:12:06.5]} 4... c6 {[%clk 0:12:02.4]} 5. a3 {[%clk 0:12:08]} 5...
Bf5 {[%clk 0:12:02.9]} 6. Nc3 {[%clk 0:12:08.2]} 6... e6 {[%clk 0:12:04.2]} 7.
Nf3 {[%clk 0:12:10.5]} 7... Nbd7 {[%clk 0:12:03.8]} 8. O-O {[%clk 0:12:12.2]}
8... Be7 {[%clk 0:12:04.2]} 9. b4 {[%clk 0:11:57]} 9... O-O {[%clk 0:11:58.6]}
10. Bb2 {[%clk 0:11:57.2]} 10... a6 {[%clk 0:11:34.1]} 11. Rc1 {[%clk
0:11:47.7]} 11... Nd5 {[%clk 0:11:34.3]} 12. Nxd5 {[%clk 0:11:46.1]} 12... exd5
{[%clk 0:11:35.4]} 13. Ba2 {[%clk 0:11:46.6]} 13... Nf6 {[%clk 0:11:33.5]} 14.
h3 {[%clk 0:11:36.8]} 14... h6 {[%clk 0:11:19.9]} 15. Ne5 {[%clk 0:11:25.6]}
15... Nd7 {[%clk 0:11:13.5]} 16. f4 {[%clk 0:11:26.5]} 16... f6 {[%clk
0:11:07.2]} 17. Nd3 {[%clk 0:10:50.2]} 17... Re8 {[%clk 0:10:50.3]} 18. Qh5
{[%clk 0:10:37.6]} 18... Bh7 {[%clk 0:10:34.7]} 19. Nf2 {[%clk 0:10:29.7]} 19...
Bd6 {[%clk 0:10:25.2]} 20. Rce1 {[%clk 0:10:25.6]} 20... Nf8 {[%clk 0:10:02.7]}
21. e4 {[%clk 0:10:25.6]} 21... Bg6 {[%clk 0:09:55.8]} 22. Qf3 {[%clk
0:10:20.7]} 22... Bf7 {[%clk 0:07:25.8]} 23. e5 {[%clk 0:10:17.5]} 23... Bc7
{[%clk 0:07:19.4]} 24. Ng4 {[%clk 0:10:14.3]} 24... f5 {[%clk 0:07:13.3]} 25.
Ne3 {[%clk 0:10:01.7]} 25... Be6 {[%clk 0:07:12]} 26. Rc1 {[%clk 0:09:37]} 26...
Qh4 {[%clk 0:06:51.5]} 27. Nxd5 {[%clk 0:09:24.1]} 27... Bxd5 {[%clk 0:06:45.3]}
28. Bxd5+ {[%clk 0:09:25]} 28... cxd5 {[%clk 0:06:46.5]} 29. Rxc7 {[%clk
0:09:24.8]} 29... Ne6 {[%clk 0:06:28.5]} 30. Rxb7 {[%clk 0:09:13.9]} 30... Rac8
{[%clk 0:06:30]} 31. Rb6 {[%clk 0:09:05.9]} 31... Rc2 {[%clk 0:06:29.6]} 32. Ba1
{[%clk 0:08:59.7]} 32... Rd2 {[%clk 0:06:15.1]} 33. Rxa6 {[%clk 0:08:47.9]}
33... Nxd4 {[%clk 0:06:12.3]} 34. Qxd5+ {[%clk 0:08:41.4]} 34... Kh8 {[%clk
0:06:11]} 35. Bxd4 {[%clk 0:08:38.3]} 35... Qg3 {[%clk 0:06:06]} 36. Rd6 {[%clk
0:08:17.4]} 36... Qxa3 {[%clk 0:05:44.3]} 37. e6 {[%clk 0:08:17]} 37... Qa4
{[%clk 0:05:40.6]} 38. Bxg7+ {[%clk 0:08:16.9]} 38... Kxg7 {[%clk 0:05:39.1]}
39. Qxd2 {[%clk 0:08:17.7]} 39... Qxb4 {[%clk 0:05:41.4]} 40. Qxb4 {[%clk
0:08:16.8]} 1-0

[Event "Rapid della Domenica"]
[Site "Chess.com"]
[Date "2020.05.17"]
[Round "3"]
[White "sirmale49"]
[Black "crippo"]
[Result "0-1"]
[WhiteElo "1446"]
[BlackElo "1526"]
[TimeControl "720+3"]
[EndTime "7:21:05 PDT"]
[Termination "crippo ha vinto per tempo"]

1. e4 {[%clk 0:11:56]} 1... e5 {[%clk 0:11:59.3]} 2. f4 {[%clk 0:11:57.6]} 2...
exf4 {[%clk 0:12:00.7]} 3. Nf3 {[%clk 0:11:59.3]} 3... d6 {[%clk 0:12:03]} 4.
Bc4 {[%clk 0:11:59.2]} 4... Be7 {[%clk 0:12:04.2]} 5. O-O {[%clk 0:12:00.7]}
5... Nf6 {[%clk 0:12:05]} 6. d3 {[%clk 0:12:01.7]} 6... O-O {[%clk 0:12:05.9]}
7. Bxf4 {[%clk 0:12:02]} 7... Nc6 {[%clk 0:12:06.7]} 8. a3 {[%clk 0:11:55.1]}
8... Ng4 {[%clk 0:12:07.2]} 9. h3 {[%clk 0:11:41.6]} 9... Nf6 {[%clk 0:12:06]}
10. Nc3 {[%clk 0:11:36.4]} 10... Be6 {[%clk 0:12:04.5]} 11. Nd5 {[%clk
0:11:25.6]} 11... Nd7 {[%clk 0:12:01.3]} 12. Nxe7+ {[%clk 0:11:13.7]} 12... Qxe7
{[%clk 0:12:02.1]} 13. Bxe6 {[%clk 0:10:55.4]} 13... fxe6 {[%clk 0:12:02.9]} 14.
Ng5 {[%clk 0:10:42.4]} 14... e5 {[%clk 0:11:55.8]} 15. Bd2 {[%clk 0:10:16.1]}
15... Rxf1+ {[%clk 0:11:48.3]} 16. Qxf1 {[%clk 0:10:12.7]} 16... Rf8 {[%clk
0:11:48.4]} 17. Qd1 {[%clk 0:09:25.2]} 17... Nf6 {[%clk 0:11:22.3]} 18. c3
{[%clk 0:08:52.8]} 18... h6 {[%clk 0:11:21.5]} 19. Nf3 {[%clk 0:08:46.1]} 19...
d5 {[%clk 0:11:21.7]} 20. Nh4 {[%clk 0:08:27.1]} 20... dxe4 {[%clk 0:11:21.4]}
21. Ng6 {[%clk 0:08:20]} 21... Qc5+ {[%clk 0:11:14.2]} 22. Kh1 {[%clk
0:08:01.8]} 22... Rf7 {[%clk 0:11:07]} 23. b4 {[%clk 0:07:42.8]} 23... Qf2
{[%clk 0:11:06.9]} 24. b5 {[%clk 0:06:51.6]} 24... Ne7 {[%clk 0:10:33.1]} 25.
Nxe5 {[%clk 0:06:50.8]} 25... exd3 {[%clk 0:10:28]} 26. Nxd3 {[%clk 0:06:43.8]}
26... Qf5 {[%clk 0:10:15]} 27. Nf4 {[%clk 0:05:31.8]} 27... Ne4 {[%clk
0:10:11.9]} 28. Be3 {[%clk 0:04:20.6]} 28... Nxc3 {[%clk 0:10:05.4]} 29. Qd8+
{[%clk 0:04:07.4]} 29... Kh7 {[%clk 0:10:06]} 30. Rf1 {[%clk 0:03:49.4]} 30...
Ne4 {[%clk 0:10:04]} 31. Kh2 {[%clk 0:03:29.9]} 31... g5 {[%clk 0:09:55.4]} 32.
Qxc7 {[%clk 0:01:56.3]} 32... Ng6 {[%clk 0:09:52.5]} 33. Qc4 {[%clk 0:00:38.8]}
33... gxf4 {[%clk 0:09:51.9]} 34. g4 {[%clk 0:00:11.8]} 34... fxg3+ {[%clk
0:09:53.6]} 0-1

[Event "Rapid della Domenica"]
[Site "Chess.com"]
[Date "2020.05.17"]
[Round "3"]
[White "laremaro"]
[Black "fausto2p"]
[Result "1-0"]
[WhiteElo "1615"]
[BlackElo "1199"]
[TimeControl "720+3"]
[EndTime "7:23:51 PDT"]
[Termination "laremaro ha vinto per scaccomatto"]

1. e4 {[%clk 0:12:02.7]} 1... e6 {[%clk 0:12:00.3]} 2. d3 {[%clk 0:12:03.9]}
2... d5 {[%clk 0:12:01.3]} 3. Nd2 {[%clk 0:12:04.5]} 3... c5 {[%clk 0:11:56.5]}
4. Ngf3 {[%clk 0:12:06.1]} 4... Nc6 {[%clk 0:11:53.7]} 5. g3 {[%clk 0:12:07.1]}
5... Nf6 {[%clk 0:11:32.3]} 6. Bg2 {[%clk 0:12:07.9]} 6... Bd6 {[%clk
0:11:23.1]} 7. O-O {[%clk 0:12:05.4]} 7... O-O {[%clk 0:11:23.1]} 8. Re1 {[%clk
0:12:07.5]} 8... Be7 {[%clk 0:10:48.5]} 9. c3 {[%clk 0:11:51]} 9... e5 {[%clk
0:10:41.3]} 10. exd5 {[%clk 0:11:13.5]} 10... Nxd5 {[%clk 0:10:32.3]} 11. Nxe5
{[%clk 0:11:10.9]} 11... Nxe5 {[%clk 0:10:01.4]} 12. Rxe5 {[%clk 0:11:04]} 12...
Nf6 {[%clk 0:09:42.1]} 13. Nc4 {[%clk 0:10:50.1]} 13... Bg4 {[%clk 0:09:25.3]}
14. Qb3 {[%clk 0:10:38.6]} 14... Rb8 {[%clk 0:09:15.3]} 15. Bf4 {[%clk
0:10:33.9]} 15... Qxd3 {[%clk 0:08:33.2]} 16. Rxe7 {[%clk 0:10:27.4]} 16... Rbe8
{[%clk 0:07:01.6]} 17. Ne5 {[%clk 0:09:47.4]} 17... Qe2 {[%clk 0:06:14.7]} 18.
Rxe8 {[%clk 0:09:33]} 18... Nxe8 {[%clk 0:06:09.6]} 19. Nd7 {[%clk 0:08:59.5]}
19... Be6 {[%clk 0:05:44.9]} 20. Qd1 {[%clk 0:08:52.2]} 20... Qxb2 {[%clk
0:05:26.3]} 21. Nxf8 {[%clk 0:08:48.2]} 21... Kxf8 {[%clk 0:05:26.1]} 22. Bd6+
{[%clk 0:08:29.1]} 22... Kg8 {[%clk 0:05:22.7]} 23. Bxc5 {[%clk 0:08:20.5]}
23... Qxc3 {[%clk 0:05:02.5]} 24. Rc1 {[%clk 0:08:13]} 24... Qa5 {[%clk
0:04:29.4]} 25. Bxb7 {[%clk 0:07:50.2]} 25... Nf6 {[%clk 0:03:39.1]} 26. Bb4
{[%clk 0:07:21.4]} 26... Qb6 {[%clk 0:03:25]} 27. Bg2 {[%clk 0:07:01.4]} 27...
h6 {[%clk 0:03:24.3]} 28. a3 {[%clk 0:06:52.3]} 28... Ng4 {[%clk 0:03:09.6]} 29.
Qd2 {[%clk 0:06:19]} 29... a5 {[%clk 0:02:53.9]} 30. Bc5 {[%clk 0:05:59.5]}
30... Qb5 {[%clk 0:02:22.1]} 31. Qd8+ {[%clk 0:05:42.2]} 31... Kh7 {[%clk
0:02:20]} 32. Be4+ {[%clk 0:05:34.6]} 32... g6 {[%clk 0:02:12.7]} 33. Bd4 {[%clk
0:05:25.8]} 33... Qh5 {[%clk 0:01:37.9]} 34. Qh8# {[%clk 0:05:22.2]} 1-0

[Event "Rapid della Domenica"]
[Site "Chess.com"]
[Date "2020.05.17"]
[Round "3"]
[White "sergiodone"]
[Black "Mrtre7"]
[Result "1-0"]
[WhiteElo "1431"]
[BlackElo "1415"]
[TimeControl "720+3"]
[EndTime "7:24:03 PDT"]
[Termination "sergiodone ha vinto per abbandono"]

1. e4 {[%clk 0:11:03.3]} 1... c5 {[%clk 0:11:56.9]} 2. Nf3 {[%clk 0:11:02.9]}
2... e6 {[%clk 0:11:58.1]} 3. d4 {[%clk 0:10:57.7]} 3... cxd4 {[%clk 0:11:59.5]}
4. Nxd4 {[%clk 0:10:56.2]} 4... Nc6 {[%clk 0:12:01.5]} 5. Be3 {[%clk 0:10:55.3]}
5... Qc7 {[%clk 0:12:02.8]} 6. Nc3 {[%clk 0:10:53.1]} 6... a6 {[%clk 0:12:04.4]}
7. f3 {[%clk 0:10:54.4]} 7... Bb4 {[%clk 0:11:57.7]} 8. Be2 {[%clk 0:10:46.8]}
8... d5 {[%clk 0:11:53.9]} 9. Nxc6 {[%clk 0:10:30.5]} 9... bxc6 {[%clk
0:11:54.2]} 10. O-O {[%clk 0:10:26.1]} 10... Nf6 {[%clk 0:11:48.1]} 11. exd5
{[%clk 0:10:21]} 11... cxd5 {[%clk 0:11:45.1]} 12. Bd4 {[%clk 0:10:15.8]} 12...
e5 {[%clk 0:11:39.1]} 13. Bf2 {[%clk 0:09:53.1]} 13... d4 {[%clk 0:11:07.8]} 14.
Ne4 {[%clk 0:09:51.9]} 14... Nxe4 {[%clk 0:11:05.9]} 15. fxe4 {[%clk 0:09:53.1]}
15... O-O {[%clk 0:11:07.3]} 16. Bd3 {[%clk 0:09:54.4]} 16... Rb8 {[%clk
0:10:31.5]} 17. Bg3 {[%clk 0:09:47.1]} 17... Bd6 {[%clk 0:10:30.9]} 18. b3
{[%clk 0:09:45.3]} 18... a5 {[%clk 0:10:22.2]} 19. a4 {[%clk 0:09:46.9]} 19...
Qc6 {[%clk 0:09:46.9]} 20. h3 {[%clk 0:09:45.3]} 20... Ba6 {[%clk 0:09:46]} 21.
Rf5 {[%clk 0:08:57.7]} 21... f6 {[%clk 0:09:27.7]} 22. Qe2 {[%clk 0:08:44.2]}
22... Bxd3 {[%clk 0:09:00.5]} 23. Qxd3 {[%clk 0:08:37.2]} 23... Rfc8 {[%clk
0:09:00.8]} 24. Rf2 {[%clk 0:08:28.9]} 24... Qc3 {[%clk 0:08:46.7]} 25. Rd1
{[%clk 0:08:28.9]} 25... Rb7 {[%clk 0:08:10.2]} 26. Qa6 {[%clk 0:08:18.7]} 26...
Rbc7 {[%clk 0:06:40.8]} 27. Qxd6 {[%clk 0:08:17.6]} 27... Qxg3 {[%clk
0:06:42.1]} 28. Qd5+ {[%clk 0:07:54.9]} 28... Kh8 {[%clk 0:06:26.1]} 29. Rf3
{[%clk 0:07:28]} 29... Qg5 {[%clk 0:06:09.9]} 30. c4 {[%clk 0:06:21.1]} 30...
Rc5 {[%clk 0:05:38.1]} 31. Qd7 {[%clk 0:06:13.9]} 31... Qg6 {[%clk 0:05:34.1]}
32. Re1 {[%clk 0:05:44.6]} 32... Qg5 {[%clk 0:04:52.4]} 33. Kh2 {[%clk
0:05:41.7]} 33... Qd2 {[%clk 0:03:40.1]} 34. Ref1 {[%clk 0:05:34.6]} 34... R5c7
{[%clk 0:03:23.4]} 35. Qd5 {[%clk 0:05:25.8]} 35... Qb4 {[%clk 0:03:19.7]} 36.
Rg3 {[%clk 0:05:25]} 36... Rc5 {[%clk 0:02:54.8]} 37. Qf7 {[%clk 0:05:21.3]}
37... R5c7 {[%clk 0:02:55.7]} 38. Qe6 {[%clk 0:05:04.2]} 38... Re7 {[%clk
0:02:27.9]} 39. Qxc8+ {[%clk 0:04:59]} 1-0

[Event "Rapid della Domenica"]
[Site "Chess.com"]
[Date "2020.05.17"]
[Round "3"]
[White "OMatteoWuO"]
[Black "caramante"]
[Result "0-1"]
[WhiteElo "1188"]
[BlackElo "1574"]
[TimeControl "720+3"]
[EndTime "7:27:23 PDT"]
[Termination "caramante ha vinto per scaccomatto"]

1. d4 {[%clk 0:12:02.9]} 1... Nf6 {[%clk 0:12:00.3]} 2. c4 {[%clk 0:12:04.1]}
2... g6 {[%clk 0:12:01.2]} 3. Nc3 {[%clk 0:12:04.8]} 3... Bg7 {[%clk 0:12:03.3]}
4. e4 {[%clk 0:12:06.1]} 4... d6 {[%clk 0:12:05.3]} 5. Nf3 {[%clk 0:12:03.3]}
5... c6 {[%clk 0:12:07]} 6. Bg5 {[%clk 0:11:50.7]} 6... O-O {[%clk 0:12:05.3]}
7. Bxf6 {[%clk 0:11:46.3]} 7... Bxf6 {[%clk 0:11:58.6]} 8. Qc2 {[%clk
0:11:45.2]} 8... Nd7 {[%clk 0:11:54.7]} 9. Rd1 {[%clk 0:11:35.2]} 9... Bg7
{[%clk 0:11:55.3]} 10. Be2 {[%clk 0:11:30.1]} 10... Re8 {[%clk 0:11:55.5]} 11.
O-O {[%clk 0:11:30.7]} 11... Nf6 {[%clk 0:11:54.4]} 12. e5 {[%clk 0:11:31.7]}
12... Nd7 {[%clk 0:11:49.1]} 13. exd6 {[%clk 0:11:25.3]} 13... exd6 {[%clk
0:11:49.8]} 14. c5 {[%clk 0:10:58.8]} 14... d5 {[%clk 0:11:45.3]} 15. b4 {[%clk
0:10:59.5]} 15... Qc7 {[%clk 0:11:42.8]} 16. a4 {[%clk 0:10:42.1]} 16... Nf6
{[%clk 0:11:43.9]} 17. h3 {[%clk 0:10:25.1]} 17... Bf5 {[%clk 0:11:42]} 18. Bd3
{[%clk 0:10:15.5]} 18... Bxd3 {[%clk 0:11:41.2]} 19. Qxd3 {[%clk 0:09:53.7]}
19... Re7 {[%clk 0:11:40.4]} 20. b5 {[%clk 0:09:47.3]} 20... Rae8 {[%clk
0:11:40.5]} 21. Ne5 {[%clk 0:09:36.6]} 21... Nd7 {[%clk 0:11:37.1]} 22. Nxd7
{[%clk 0:09:35.8]} 22... Qxd7 {[%clk 0:11:36.1]} 23. a5 {[%clk 0:09:10.4]} 23...
Qc7 {[%clk 0:11:29.1]} 24. b6 {[%clk 0:09:11.2]} 24... axb6 {[%clk 0:11:29.7]}
25. axb6 {[%clk 0:09:13.1]} 25... Qd7 {[%clk 0:11:27.1]} 26. Ra1 {[%clk
0:09:05.1]} 26... Qe6 {[%clk 0:10:41.3]} 27. Ra2 {[%clk 0:08:36.1]} 27... Qf6
{[%clk 0:10:41.8]} 28. Ne2 {[%clk 0:08:17.2]} 28... Re4 {[%clk 0:10:20.2]} 29.
Rfa1 {[%clk 0:07:36.4]} 29... h5 {[%clk 0:10:08.3]} 30. Ra8 {[%clk 0:06:58]}
30... Rxa8 {[%clk 0:09:46.5]} 31. Rxa8+ {[%clk 0:06:57.1]} 31... Kh7 {[%clk
0:09:46.9]} 32. Ra7 {[%clk 0:06:13.8]} 32... Qe7 {[%clk 0:09:38.4]} 33. Ra2
{[%clk 0:05:37.3]} 33... h4 {[%clk 0:09:09.3]} 34. f3 {[%clk 0:04:56.5]} 34...
Re3 {[%clk 0:08:43.9]} 35. Qd1 {[%clk 0:04:46.6]} 35... Qg5 {[%clk 0:08:38.7]}
36. f4 {[%clk 0:04:39]} 36... Qe7 {[%clk 0:08:18.2]} 37. Kh2 {[%clk 0:04:13.8]}
37... Qe4 {[%clk 0:08:09.6]} 38. Rd2 {[%clk 0:03:25]} 38... Bh6 {[%clk
0:07:26.9]} 39. Qf1 {[%clk 0:03:09.9]} 39... Qf5 {[%clk 0:05:54.6]} 40. Ra2
{[%clk 0:01:58.5]} 40... Re4 {[%clk 0:05:47.6]} 41. g3 {[%clk 0:01:59.9]} 41...
Re3 {[%clk 0:05:24.2]} 42. g4 {[%clk 0:01:52.3]} 42... Qd3 {[%clk 0:05:09.9]}
43. f5 {[%clk 0:01:31.7]} 43... Rf3 {[%clk 0:05:03.5]} 44. fxg6+ {[%clk
0:01:28]} 44... fxg6 {[%clk 0:04:56]} 45. Qg2 {[%clk 0:01:11.1]} 45... Bf4+
{[%clk 0:04:43.2]} 46. Kh1 {[%clk 0:00:52.7]} 46... Qb1+ {[%clk 0:04:28.7]} 47.
Nc1 {[%clk 0:00:51.4]} 47... Qxc1+ {[%clk 0:04:26.1]} 48. Qg1 {[%clk 0:00:49.3]}
48... Rf1 {[%clk 0:04:27.6]} 49. Qxf1 {[%clk 0:00:42.3]} 49... Qxf1# {[%clk
0:04:28.4]} 0-1

[Event "Rapid della Domenica"]
[Site "Chess.com"]
[Date "2020.05.17"]
[Round "4"]
[White "crippo"]
[Black "laremaro"]
[Result "1-0"]
[WhiteElo "1539"]
[BlackElo "1600"]
[TimeControl "720+3"]
[EndTime "7:37:11 PDT"]
[Termination "crippo ha vinto per abbandono"]

1. e4 {[%clk 0:12:02.9]} 1... d5 {[%clk 0:12:01.2]} 2. exd5 {[%clk 0:12:03.9]}
2... Qxd5 {[%clk 0:12:03.1]} 3. Nc3 {[%clk 0:12:06.1]} 3... Qd6 {[%clk
0:12:04.3]} 4. d4 {[%clk 0:12:08]} 4... c6 {[%clk 0:12:05.6]} 5. Nf3 {[%clk
0:12:10]} 5... Bg4 {[%clk 0:12:06.9]} 6. Be3 {[%clk 0:12:07.6]} 6... e6 {[%clk
0:12:03.8]} 7. Be2 {[%clk 0:12:08.5]} 7... Nf6 {[%clk 0:12:04.7]} 8. O-O {[%clk
0:12:07.7]} 8... Be7 {[%clk 0:12:05]} 9. h3 {[%clk 0:12:06]} 9... Bh5 {[%clk
0:12:06.3]} 10. Ne5 {[%clk 0:11:54.2]} 10... Bxe2 {[%clk 0:12:04.5]} 11. Qxe2
{[%clk 0:11:55.4]} 11... Qc7 {[%clk 0:12:06.3]} 12. f3 {[%clk 0:11:47.3]} 12...
Nbd7 {[%clk 0:12:03.4]} 13. Bf4 {[%clk 0:11:38.1]} 13... Bd6 {[%clk 0:12:02.8]}
14. Ne4 {[%clk 0:11:37.1]} 14... Nd5 {[%clk 0:11:30.4]} 15. Nxd6+ {[%clk
0:11:30.8]} 15... Qxd6 {[%clk 0:11:27.3]} 16. Bg3 {[%clk 0:11:28.7]} 16... Qe7
{[%clk 0:11:07]} 17. c4 {[%clk 0:11:22]} 17... N5f6 {[%clk 0:11:02.5]} 18. c5
{[%clk 0:11:21.9]} 18... Nxe5 {[%clk 0:10:23.5]} 19. Bxe5 {[%clk 0:11:22.2]}
19... O-O-O {[%clk 0:10:09.8]} 20. b4 {[%clk 0:11:17.7]} 20... Nd5 {[%clk
0:10:03.9]} 21. b5 {[%clk 0:11:16.3]} 21... Nc3 {[%clk 0:09:50.6]} 22. Qb2
{[%clk 0:11:15.3]} 22... Nxb5 {[%clk 0:09:48.5]} 23. a4 {[%clk 0:11:16]} 23...
Nc7 {[%clk 0:09:41.7]} 24. Rab1 {[%clk 0:11:16.3]} 24... Nd5 {[%clk 0:09:40.2]}
25. Bd6 {[%clk 0:11:16.5]} 25... Qd7 {[%clk 0:09:36]} 26. a5 {[%clk 0:11:13.7]}
26... a6 {[%clk 0:09:33.6]} 27. Qb3 {[%clk 0:11:03.6]} 27... g5 {[%clk
0:08:48.9]} 28. Rf2 {[%clk 0:11:02.1]} 28... Rhg8 {[%clk 0:08:46.4]} 29. Rfb2
{[%clk 0:11:03.1]} 29... h5 {[%clk 0:08:11.1]} 30. Qxb7+ {[%clk 0:11:01.7]}
30... Qxb7 {[%clk 0:08:11.8]} 31. Rxb7 {[%clk 0:11:03.5]} 31... Nc3 {[%clk
0:07:07.2]} 32. Rb8+ {[%clk 0:11:03.5]} 32... Kd7 {[%clk 0:07:05.8]} 33. R1b7+
{[%clk 0:11:06]} 33... Ke8 {[%clk 0:07:06.4]} 34. Re7+ {[%clk 0:11:06.2]} 1-0

[Event "Rapid della Domenica"]
[Site "Chess.com"]
[Date "2020.05.17"]
[Round "4"]
[White "fausto2p"]
[Black "Mrtre7"]
[Result "1-0"]
[WhiteElo "1220"]
[BlackElo "1396"]
[TimeControl "720+3"]
[EndTime "7:40:45 PDT"]
[Termination "fausto2p ha vinto per abbandono"]

1. d4 {[%clk 0:12:02.9]} 1... d5 {[%clk 0:12:00]} 2. c4 {[%clk 0:12:03.7]} 2...
c6 {[%clk 0:12:00.6]} 3. Nf3 {[%clk 0:12:02.4]} 3... e6 {[%clk 0:12:02]} 4. Nc3
{[%clk 0:12:03]} 4... dxc4 {[%clk 0:12:01.9]} 5. a4 {[%clk 0:11:58.3]} 5... Bb4
{[%clk 0:12:02.2]} 6. e4 {[%clk 0:11:52.3]} 6... Nf6 {[%clk 0:11:46]} 7. e5
{[%clk 0:11:52.7]} 7... Nd5 {[%clk 0:11:35.1]} 8. Bd2 {[%clk 0:11:33.4]} 8...
Nxc3 {[%clk 0:11:32.5]} 9. bxc3 {[%clk 0:11:30]} 9... Ba5 {[%clk 0:11:25]} 10.
Bxc4 {[%clk 0:11:27.2]} 10... a6 {[%clk 0:11:23.6]} 11. O-O {[%clk 0:11:20.6]}
11... b5 {[%clk 0:11:25.3]} 12. axb5 {[%clk 0:11:18.4]} 12... cxb5 {[%clk
0:11:26.2]} 13. Bd3 {[%clk 0:11:08]} 13... Bb7 {[%clk 0:11:27.5]} 14. Ng5 {[%clk
0:10:51.4]} 14... Bxc3 {[%clk 0:11:11.2]} 15. Nxe6 {[%clk 0:10:33.8]} 15... fxe6
{[%clk 0:11:05.1]} 16. Qh5+ {[%clk 0:10:32.7]} 16... Kd7 {[%clk 0:10:41.7]} 17.
Bxc3 {[%clk 0:10:07.9]} 17... g6 {[%clk 0:09:56.8]} 18. Qh6 {[%clk 0:09:15.3]}
18... Nc6 {[%clk 0:09:45]} 19. Be4 {[%clk 0:08:41.8]} 19... Qf8 {[%clk
0:07:33.5]} 20. Qh3 {[%clk 0:08:21.4]} 20... g5 {[%clk 0:06:55.2]} 21. d5 {[%clk
0:08:21.3]} 21... Nd8 {[%clk 0:05:58.4]} 22. dxe6+ {[%clk 0:08:11.5]} 22... Kc8
{[%clk 0:05:44.9]} 23. e7+ {[%clk 0:07:43.9]} 1-0

[Event "Rapid della Domenica"]
[Site "Chess.com"]
[Date "2020.05.17"]
[Round "4"]
[White "ottovolante"]
[Black "sergiodone"]
[Result "0-1"]
[WhiteElo "992"]
[BlackElo "1432"]
[TimeControl "720+3"]
[EndTime "7:42:12 PDT"]
[Termination "sergiodone ha vinto per scaccomatto"]

1. e4 {[%clk 0:12:02.9]} 1... c5 {[%clk 0:11:19.8]} 2. Nf3 {[%clk 0:11:58.1]}
2... d6 {[%clk 0:11:21]} 3. Nc3 {[%clk 0:11:50.9]} 3... a6 {[%clk 0:11:19.3]} 4.
Bc4 {[%clk 0:11:51.2]} 4... e6 {[%clk 0:11:20.6]} 5. d4 {[%clk 0:11:49.2]} 5...
cxd4 {[%clk 0:11:20.3]} 6. Qxd4 {[%clk 0:11:49.1]} 6... Nf6 {[%clk 0:11:17.2]}
7. e5 {[%clk 0:11:44.9]} 7... Nc6 {[%clk 0:11:15.7]} 8. Qd1 {[%clk 0:11:34.3]}
8... Ng8 {[%clk 0:10:46.5]} 9. O-O {[%clk 0:11:27.3]} 9... d5 {[%clk 0:10:46.6]}
10. Be2 {[%clk 0:11:20.9]} 10... Be7 {[%clk 0:10:45.1]} 11. a3 {[%clk
0:11:21.8]} 11... h5 {[%clk 0:10:36.7]} 12. Bd2 {[%clk 0:11:20.1]} 12... Nh6
{[%clk 0:10:29.3]} 13. Bxh6 {[%clk 0:11:12.5]} 13... Rxh6 {[%clk 0:10:30.2]} 14.
Nd4 {[%clk 0:10:43.4]} 14... Nxd4 {[%clk 0:10:26.8]} 15. Qxd4 {[%clk 0:10:43.5]}
15... g6 {[%clk 0:10:23.7]} 16. Qd2 {[%clk 0:10:37.9]} 16... Rh8 {[%clk
0:10:24.8]} 17. f4 {[%clk 0:10:24.2]} 17... Qb6+ {[%clk 0:10:19]} 18. Kh1 {[%clk
0:10:11.2]} 18... Bd7 {[%clk 0:10:19.7]} 19. b3 {[%clk 0:10:08.8]} 19... Bc6
{[%clk 0:10:18.8]} 20. Bf3 {[%clk 0:10:06.1]} 20... h4 {[%clk 0:10:13.8]} 21. a4
{[%clk 0:09:56.7]} 21... h3 {[%clk 0:10:14.3]} 22. a5 {[%clk 0:09:47]} 22...
hxg2+ {[%clk 0:10:15.6]} 23. Bxg2 {[%clk 0:09:47.1]} 23... Qc5 {[%clk
0:10:12.1]} 24. Na4 {[%clk 0:09:32.7]} 24... Qb4 {[%clk 0:08:22.7]} 25. Qxb4
{[%clk 0:09:29.8]} 25... Bxb4 {[%clk 0:08:22.8]} 26. c3 {[%clk 0:09:26.3]} 26...
Be7 {[%clk 0:07:59.9]} 27. Nb2 {[%clk 0:09:20.4]} 27... Bc5 {[%clk 0:07:05.2]}
28. b4 {[%clk 0:09:18.5]} 28... Be3 {[%clk 0:06:53.2]} 29. Nd1 {[%clk
0:08:58.6]} 29... Ba7 {[%clk 0:06:47.6]} 30. Nb2 {[%clk 0:08:08.1]} 30... Rh4
{[%clk 0:06:43]} 31. Nd1 {[%clk 0:07:40.9]} 31... Ke7 {[%clk 0:06:43.5]} 32. Rb1
{[%clk 0:07:31]} 32... Rah8 {[%clk 0:06:43.1]} 33. h3 {[%clk 0:07:26.9]} 33...
d4 {[%clk 0:06:44.4]} 34. Rc1 {[%clk 0:07:10.6]} 34... Rxh3+ {[%clk 0:06:35.9]}
35. Kg1 {[%clk 0:07:09.9]} 35... d3+ {[%clk 0:06:29.9]} 36. Nf2 {[%clk
0:07:09.9]} 36... Rg3 {[%clk 0:06:22.4]} 37. Rcd1 {[%clk 0:07:08.7]} 37... Rxg2#
{[%clk 0:06:22.2]} 0-1